fUST/lending_fUST_20250828
["ID","MTS","AMOUNT","RATE_DAILY","PERIOD"]
[381705325,1756315880404,-500.0,0.00022469,2]
[381705326,1756315880414,-503.6153923,0.00022469,2]
[381705327,1756315880425,-151.94225115,0.00022469,2]
[381705328,1756315880434,-153.0,0.00022488,2]
[381705329,1756315880443,-322.2842668,0.00022488,2]
[381705330,1756315880452,-153.0,0.00022488,2]
[381705331,1756315880462,-161.1421334,0.00022488,2]
[381705332,1756315880471,-153.0,0.00022488,2]
[381705333,1756315880481,-153.0,0.00022488,2]
[381705334,1756315880490,-153.0,0.00022488,2]
[381705335,1756315880500,-153.0,0.00022488,2]
[381705336,1756315880509,-153.0,0.00022488,2]
[381705337,1756315880519,-153.0,0.00022488,2]
[381705338,1756315880528,-1000.0,0.000225,2]
[381705339,1756315880538,-310.02441966,0.00022506,8]
[381705340,1756315880547,-500.0,0.00022517,8]
[381705341,1756315880556,-670.95834097,0.00022521,2]
[381705342,1756315880566,-500.0,0.00022521,2]
[381705343,1756315880576,-1000.0,0.00022521,2]
[381705344,1756315880706,-1000.0,0.00022521,2]
[381705345,1756315880716,-1000.0,0.00022521,2]
[381705346,1756315880726,-1002.46213118,0.00022521,2]
[381705347,1756315880735,-1000.0,0.00022521,2]
[381705348,1756315880745,-1000.0,0.00022521,2]
[381705349,1756315880755,-504.584531,0.00022521,2]
[381705350,1756315880764,-612.7633669,0.00022521,2]
[381705351,1756315880773,-1000.0,0.00022521,2]
[381705352,1756315880783,-1000.0,0.00022521,2]
[381705353,1756315880792,-1000.0,0.00022521,2]
[381705354,1756315880802,-1000.0,0.00022521,2]
[381705355,1756315880812,-1000.0,0.00022521,2]
[381705356,1756315880822,-1000.0,0.00022521,2]
[381705357,1756315880832,-1000.0,0.00022521,2]
[381705358,1756315880841,-1000.0,0.00022521,2]
[381705359,1756315880850,-1000.0,0.00022521,2]
[381705360,1756315880860,-1004.03666907,0.00022521,2]
[381705361,1756315880869,-1000.0,0.00022521,2]
[381705362,1756315880879,-1000.0,0.00022521,2]
[381705363,1756315880888,-956.84374954,0.00022521,2]
[381705364,1756315880897,-598.68508446,0.00022521,2]
[381705365,1756315880907,-499.45917636,0.00022521,2]
[381705366,1756315880917,-1000.0,0.00022521,2]
[381705367,1756315880926,-1000.0,0.00022521,2]
[381705368,1756315880936,-1000.0,0.00022521,2]
[381705369,1756315880948,-1000.0,0.00022521,2]
[381705370,1756315880958,-1000.0,0.00022521,2]
[381705371,1756315880967,-1000.0,0.00022521,2]
[381705372,1756315880977,-500.0,0.00022521,2]
[381705373,1756315880987,-1000.0,0.00022521,2]
[381705374,1756315880997,-1000.0,0.00022521,2]
[381705375,1756315881007,-1001.17237062,0.00022521,2]
[381705376,1756315881017,-1000.0,0.00022521,2]
[381705377,1756315881026,-168.0,0.00022563,2]
[381705378,1756315881035,-362.33234397,0.00022603,2]
[381705379,1756315881044,-168.0,0.00022672,2]
[381705380,1756315881054,-968.0,0.000227,2]
[381705381,1756315881064,-168.0,0.000227,2]
[381705382,1756315881075,-168.0,0.00022712,2]
[381705383,1756315881084,-300.0,0.00022721,2]
[381705384,1756315881093,-480.0,0.00022739,2]
[381705385,1756315881102,-487.24,0.00022739,2]
[381705386,1756315881112,-480.0,0.00022739,2]
[381705387,1756315881121,-480.0,0.00022739,2]
[381705388,1756315881131,-484.08977263,0.00022739,2]
[381705389,1756315881141,-349.56850654,0.00022739,2]
[381705390,1756315881151,-521.13,0.00022739,2]
[381705391,1756315881160,-480.0,0.00022739,2]
[381705392,1756315881170,-480.0,0.00022739,2]
[381705393,1756315881179,-151.92688484,0.00022739,2]
[381705394,1756315881188,-480.0,0.00022739,2]
[381705395,1756315881197,-754.55,0.00022739,2]
[381705396,1756315881207,-480.0,0.00022739,2]
[381705397,1756315881217,-480.0,0.00022739,2]
[381705398,1756315881227,-480.0,0.00022739,2]
[381705399,1756315881236,-206.24466136,0.00022739,2]
[381705400,1756315881245,-480.0,0.00022739,2]
[381705401,1756315881255,-480.0,0.00022739,2]
[381705402,1756315881264,-480.0,0.00022739,2]
[381705403,1756315881274,-480.0,0.00022739,2]
[381705404,1756315881283,-480.0,0.00022739,2]
[381705405,1756315881292,-480.0,0.00022739,2]
[381705406,1756315881302,-480.0,0.00022739,2]
[381705407,1756315881312,-480.0,0.00022739,2]
[381705408,1756315881326,-480.0,0.00022739,2]
[381705409,1756315881336,-1012.65,0.00022739,2]
[381705410,1756315881345,-480.0,0.00022739,2]
[381705411,1756315881356,-404.27670819,0.00022739,2]
[381705412,1756315881366,-480.0,0.00022739,2]
[381705413,1756315881376,-499.63,0.00022739,2]
[381705414,1756315881385,-480.0,0.00022739,2]
[381705415,1756315881394,-480.0,0.00022739,2]
[381705416,1756315881403,-480.0,0.00022739,2]
[381705417,1756315881413,-480.0,0.00022739,2]
[381705418,1756315881422,-480.0,0.00022739,2]
[381705419,1756315881431,-480.0,0.00022739,2]
[381705420,1756315881440,-480.0,0.00022739,2]
[381705421,1756315881449,-480.0,0.00022739,2]
[381705422,1756315881459,-480.0,0.00022739,2]
[381705423,1756315881469,-734.05,0.00022739,2]
[381705424,1756315881479,-487.48,0.00022739,2]
[381705425,1756315881488,-480.0,0.00022739,2]
[381705426,1756315881498,-480.0,0.00022739,2]
[381705427,1756315881507,-480.0,0.00022739,2]
[381705428,1756315881516,-861.84,0.00022739,2]
[381705429,1756315881526,-480.0,0.00022739,2]
[381705430,1756315881536,-480.0,0.00022739,2]
[381705431,1756315881545,-480.0,0.00022739,2]
[381705432,1756315881555,-480.0,0.00022739,2]
[381705433,1756315881564,-480.0,0.00022739,2]
[381705434,1756315881576,-480.0,0.00022739,2]
[381705435,1756315881587,-480.0,0.00022739,2]
[381705436,1756315881598,-480.0,0.00022739,2]
[381705437,1756315881607,-480.0,0.00022739,2]
[381705438,1756315881618,-1003.54,0.00022739,2]
[381705439,1756315881628,-480.0,0.00022739,2]
[381705440,1756315881641,-480.0,0.00022739,2]
[381705441,1756315881653,-480.0,0.00022739,2]
[381705442,1756315881662,-480.0,0.00022739,2]
[381705443,1756315881673,-480.0,0.00022739,2]
[381705444,1756315881683,-480.0,0.00022739,2]
[381705445,1756315881692,-480.0,0.00022739,2]
[381705446,1756315881702,-547.19,0.00022739,2]
[381705447,1756315881711,-480.0,0.00022739,2]
[381705448,1756315881720,-591.49,0.00022739,2]
[381705449,1756315881730,-480.0,0.00022739,2]
[381705450,1756315881739,-480.0,0.00022739,2]
[381705451,1756315881749,-480.0,0.00022739,2]
[381705452,1756315881758,-480.0,0.00022739,2]
[381705453,1756315881767,-480.0,0.00022739,2]
[381705454,1756315881776,-480.0,0.00022739,2]
[381705455,1756315881786,-480.0,0.00022739,2]
[381705456,1756315881797,-480.0,0.00022739,2]
[381705457,1756315881806,-480.0,0.00022739,2]
[381705458,1756315881815,-480.0,0.00022739,2]
[381705459,1756315881825,-501.98,0.00022739,2]
[381705460,1756315881834,-480.0,0.00022739,2]
[381705461,1756315881842,-480.0,0.00022739,2]
[381705462,1756315881852,-480.0,0.00022739,2]
[381705463,1756315881862,-653.06,0.00022739,2]
[381705464,1756315881871,-532.33,0.00022739,2]
[381705465,1756315881880,-480.0,0.00022739,2]
[381705466,1756315881890,-480.0,0.00022739,2]
[381705467,1756315881899,-480.0,0.00022739,2]
[381705468,1756315881908,-480.0,0.00022739,2]
[381705469,1756315881917,-480.0,0.00022739,2]
[381705470,1756315881926,-480.0,0.00022739,2]
[381705471,1756315881936,-480.0,0.00022739,2]
[381705472,1756315881945,-480.0,0.00022739,2]
[381705473,1756315881954,-480.0,0.00022739,2]
[381705474,1756315881964,-480.0,0.00022739,2]
[381705475,1756315881973,-480.0,0.00022739,2]
[381705476,1756315881983,-480.0,0.00022739,2]
[381705477,1756315881993,-480.0,0.00022739,2]
[381705478,1756315882002,-480.0,0.00022739,2]
[381705479,1756315882011,-480.0,0.00022739,2]
[381705480,1756315882021,-480.0,0.00022739,2]
[381705481,1756315882031,-480.0,0.00022739,2]
[381705482,1756315882041,-480.0,0.00022739,2]
[381705483,1756315882050,-480.0,0.00022739,2]
[381705484,1756315882060,-480.0,0.00022739,2]
[381705485,1756315882070,-480.0,0.00022739,2]
[381705486,1756315882080,-480.0,0.00022739,2]
[381705487,1756315882089,-521.62,0.00022739,2]
[381705488,1756315882099,-553.62,0.00022739,2]
[381705489,1756315882108,-480.0,0.00022739,2]
[381705490,1756315882117,-480.0,0.00022739,2]
[381705491,1756315882127,-277.56048157,0.00022739,2]
[381705492,1756315882136,-480.0,0.00022739,2]
[381705493,1756315882146,-309.93081023,0.00022739,2]
[381705494,1756315882155,-480.0,0.00022739,2]
[381705495,1756315882165,-633.41,0.00022739,2]
[381705496,1756315882175,-480.0,0.00022739,2]
[381705497,1756315882185,-480.0,0.00022739,2]
[381705498,1756315882194,-480.0,0.00022739,2]
[381705499,1756315882203,-480.0,0.00022739,2]
[381705500,1756315882212,-480.0,0.00022739,2]
[381705501,1756315882221,-480.84,0.00022739,2]
[381705502,1756315882231,-480.0,0.00022739,2]
[381705503,1756315882241,-373.24998421,0.00022739,2]
[381705504,1756315882250,-480.0,0.00022739,2]
[381705505,1756315882259,-480.0,0.00022739,2]
[381705506,1756315882268,-480.0,0.00022739,2]
[381705507,1756315882277,-480.0,0.00022739,2]
[381705508,1756315882287,-647.08,0.00022739,2]
[381705509,1756315882296,-480.0,0.00022739,2]
[381705510,1756315882305,-270.92917611,0.00022739,2]
[381705511,1756315882315,-449.11489423,0.00022739,2]
[381705512,1756315882326,-559.93,0.00022739,2]
[381705513,1756315882336,-480.0,0.00022739,2]
[381705514,1756315882345,-480.0,0.00022739,2]
[381705515,1756315882355,-480.0,0.00022739,2]
[381705516,1756315882365,-480.0,0.00022739,2]
[381705517,1756315882375,-480.0,0.00022739,2]
[381705518,1756315882384,-480.0,0.00022739,2]
[381705519,1756315882393,-480.0,0.00022739,2]
[381705520,1756315882403,-480.0,0.00022739,2]
[381705521,1756315882414,-480.0,0.00022739,2]
[381705522,1756315882422,-480.0,0.00022739,2]
[381705523,1756315882432,-609.46,0.00022739,2]
[381705524,1756315882441,-480.0,0.00022739,2]
[381705525,1756315882450,-480.0,0.00022739,2]
[381705526,1756315882460,-480.0,0.00022739,2]
[381705527,1756315882469,-480.0,0.00022739,2]
[381705528,1756315882479,-480.0,0.00022739,2]
[381705529,1756315882490,-480.0,0.00022739,2]
[381705530,1756315882500,-420.22057519,0.00022739,2]
[381705531,1756315882509,-480.0,0.00022739,2]
[381705532,1756315882518,-555.02,0.00022739,2]
[381705533,1756315882528,-480.0,0.00022739,2]
[381705534,1756315882537,-480.0,0.00022739,2]
[381705535,1756315882546,-660.92,0.00022739,2]
[381705536,1756315882555,-569.18,0.00022739,2]
[381705537,1756315882565,-1003.81,0.00022739,2]
[381705538,1756315882576,-680.33,0.00022739,2]
[381705539,1756315882587,-480.0,0.00022739,2]
[381705540,1756315882598,-480.0,0.00022739,2]
[381705541,1756315882607,-480.0,0.00022739,2]
[381705542,1756315882616,-480.0,0.00022739,2]
[381705543,1756315882626,-480.0,0.00022739,2]
[381705544,1756315882636,-480.0,0.00022739,2]
[381705545,1756315882645,-268.61771577,0.00022739,2]
[381705546,1756315882654,-681.56,0.00022739,2]
[381705547,1756315882665,-480.0,0.00022739,2]
[381705548,1756315882675,-480.0,0.00022739,2]
[381705549,1756315882685,-480.0,0.00022739,2]
[381705550,1756315882694,-480.0,0.00022739,2]
[381705551,1756315882704,-480.0,0.00022739,2]
[381705552,1756315882713,-480.0,0.00022739,2]
[381705553,1756315882723,-480.0,0.00022739,2]
[381705554,1756315882733,-480.0,0.00022739,2]
[381705555,1756315882743,-480.0,0.00022739,2]
[381705556,1756315882753,-480.0,0.00022739,2]
[381705557,1756315882764,-480.0,0.00022739,2]
[381705558,1756315882773,-461.70192275,0.00022739,2]
[381705559,1756315882783,-1465.34,0.00022739,2]
[381705560,1756315882793,-480.0,0.00022739,2]
[381705561,1756315882802,-480.0,0.00022739,2]
[381705562,1756315882811,-480.0,0.00022739,2]
[381705563,1756315882822,-544.04,0.00022739,2]
[381705564,1756315882831,-480.0,0.00022739,2]
[381705565,1756315882840,-480.0,0.00022739,2]
[381705566,1756315882849,-480.0,0.00022739,2]
[381705567,1756315882858,-1039.38,0.00022739,2]
[381705568,1756315882868,-480.0,0.00022739,2]
[381705569,1756315882878,-335.17755488,0.00022739,2]
[381705570,1756315882889,-418.98603208,0.00022739,2]
[381705571,1756315882898,-531.56,0.00022739,2]
[381705572,1756315882908,-480.0,0.00022739,2]
[381705573,1756315882917,-1343.03,0.00022739,2]
[381705574,1756315882927,-480.0,0.00022739,2]
[381705575,1756315882941,-480.0,0.00022739,2]
[381705576,1756315882955,-600.0,0.00022739,2]
[381705577,1756315882964,-480.0,0.00022739,2]
[381705578,1756315882973,-480.0,0.00022739,2]
[381705579,1756315882982,-480.0,0.00022739,2]
[381705580,1756315882991,-480.0,0.00022739,2]
[381705581,1756315883001,-500.0,0.00022739,2]
[381705582,1756315883010,-614.45,0.00022739,2]
[381705583,1756315883019,-480.0,0.00022739,2]
[381705584,1756315883029,-480.0,0.00022739,2]
[381705585,1756315883039,-480.0,0.00022739,2]
[381705586,1756315883048,-480.0,0.00022739,2]
[381705587,1756315883058,-480.0,0.00022739,2]
[381705588,1756315883067,-760.2,0.00022739,2]
[381705589,1756315883078,-530.93,0.00022739,2]
[381705590,1756315883087,-486.59671011,0.00022739,2]
[381705591,1756315883097,-480.0,0.00022739,2]
[381705592,1756315883107,-1064.0,0.00022739,2]
[381705593,1756315883116,-480.0,0.00022739,2]
[381705594,1756315883125,-480.0,0.00022739,2]
[381705595,1756315883134,-480.0,0.00022739,2]
[381705596,1756315883144,-480.0,0.00022739,2]
[381705597,1756315883154,-480.0,0.00022739,2]
[381705598,1756315883164,-480.0,0.00022739,2]
[381705599,1756315883174,-892.04,0.00022739,2]
[381705600,1756315883183,-505.17,0.00022739,2]
[381705601,1756315883193,-662.34,0.00022739,2]
[381705602,1756315883202,-480.0,0.00022739,2]
[381705603,1756315883213,-480.0,0.00022739,2]
[381705604,1756315883222,-417.25242054,0.00022739,2]
[381705605,1756315883232,-480.0,0.00022739,2]
[381705606,1756315883241,-480.0,0.00022739,2]
[381705607,1756315883251,-480.0,0.00022739,2]
[381705608,1756315883261,-480.0,0.00022739,2]
[381705609,1756315883270,-480.0,0.00022739,2]
[381705610,1756315883279,-480.0,0.00022739,2]
[381705611,1756315883288,-480.0,0.00022739,2]
[381705612,1756315883299,-1566.48,0.00022739,2]
[381705613,1756315883310,-480.0,0.00022739,2]
[381705614,1756315883321,-480.0,0.00022739,2]
[381705615,1756315883330,-480.0,0.00022739,2]
[381705616,1756315883340,-480.0,0.00022739,2]
[381705617,1756315883350,-480.0,0.00022739,2]
[381705618,1756315883359,-480.0,0.00022739,2]
[381705619,1756315883369,-703.96,0.00022739,2]
[381705620,1756315883378,-480.0,0.00022739,2]
[381705621,1756315883388,-521.16996261,0.00022739,2]
[381705622,1756315883397,-480.0,0.00022739,2]
[381705623,1756315883406,-717.25,0.00022739,2]
[381705624,1756315883416,-480.0,0.00022739,2]
[381705625,1756315883426,-480.0,0.00022739,2]
[381705626,1756315883435,-480.0,0.00022739,2]
[381705627,1756315883444,-480.0,0.00022739,2]
[381705628,1756315883454,-766.14,0.00022739,2]
[381705629,1756315883463,-480.0,0.00022739,2]
[381705630,1756315883472,-1026.52,0.00022739,2]
[381705631,1756315883482,-480.0,0.00022739,2]
[381705632,1756315883491,-243.12337072,0.00022739,2]
[381705633,1756315883502,-480.0,0.00022739,2]
[381705634,1756315883643,-480.0,0.00022739,2]
[381705635,1756315883668,-480.0,0.00022739,2]
[381705636,1756315883678,-897.12,0.00022739,2]
[381705637,1756315883687,-480.0,0.00022739,2]
[381705638,1756315883696,-480.0,0.00022739,2]
[381705639,1756315883705,-480.0,0.00022739,2]
[381705640,1756315883714,-496.15,0.00022739,2]
[381705641,1756315883724,-480.0,0.00022739,2]
[381705642,1756315883733,-480.0,0.00022739,2]
[381705643,1756315883743,-839.95,0.00022739,2]
[381705644,1756315883752,-480.0,0.00022739,2]
[381705645,1756315883762,-510.18,0.00022739,2]
[381705646,1756315883771,-480.0,0.00022739,2]
[381705647,1756315883780,-4321.67,0.00022739,2]
[381705648,1756315883790,-480.0,0.00022739,2]
[381705649,1756315883800,-480.0,0.00022739,2]
[381705650,1756315883810,-748.41,0.00022739,2]
[381705651,1756315883820,-482.40957526,0.00022739,2]
[381705652,1756315883829,-480.0,0.00022739,2]
[381705653,1756315883839,-530.0,0.00022739,2]
[381705654,1756315883848,-480.0,0.00022739,2]
[381705655,1756315883858,-480.0,0.00022739,2]
[381705656,1756315883867,-480.0,0.00022739,2]
[381705657,1756315883876,-480.0,0.00022739,2]
[381705658,1756315883886,-497.55,0.00022739,2]
[381705659,1756315883895,-487.03,0.00022739,2]
[381705660,1756315883905,-480.0,0.00022739,2]
[381705661,1756315883915,-482.24467229,0.00022739,2]
[381705662,1756315883924,-480.0,0.00022739,2]
[381705663,1756315883933,-480.0,0.00022739,2]
[381705664,1756315883942,-480.0,0.00022739,2]
[381705665,1756315883952,-831.39,0.00022739,2]
[381705666,1756315883961,-480.0,0.00022739,2]
[381705667,1756315883971,-480.0,0.00022739,2]
[381705668,1756315883981,-480.0,0.00022739,2]
[381705669,1756315883990,-524.19,0.00022739,2]
[381705670,1756315884000,-1177.95,0.00022739,2]
[381705671,1756315884010,-480.0,0.00022739,2]
[381705672,1756315884019,-480.0,0.00022739,2]
[381705673,1756315884029,-480.0,0.00022739,2]
[381705674,1756315884038,-480.0,0.00022739,2]
[381705675,1756315884052,-480.0,0.00022739,2]
[381705676,1756315884065,-480.0,0.00022739,2]
[381705677,1756315884080,-480.0,0.00022739,2]
[381705678,1756315884089,-480.0,0.00022739,2]
[381705679,1756315884098,-416.26625217,0.00022739,2]
[381705680,1756315884108,-480.0,0.00022739,2]
[381705681,1756315884117,-612.8,0.00022739,2]
[381705682,1756315884127,-480.0,0.00022739,2]
[381705683,1756315884137,-480.0,0.00022739,2]
[381705684,1756315884148,-588.21,0.00022739,2]
[381705685,1756315884162,-1709.99,0.00022739,2]
[381705686,1756315884172,-480.0,0.00022739,2]
[381705687,1756315884181,-532.52,0.00022739,2]
[381705688,1756315884190,-480.0,0.00022739,2]
[381705689,1756315884200,-480.0,0.00022739,2]
[381705690,1756315884210,-480.0,0.00022739,2]
[381705691,1756315884219,-480.0,0.00022739,2]
[381705692,1756315884229,-907.14,0.00022739,2]
[381705693,1756315884238,-480.0,0.00022739,2]
[381705694,1756315884248,-1087.58,0.00022739,2]
[381705695,1756315884258,-480.0,0.00022739,2]
[381705696,1756315884267,-615.39,0.00022739,2]
[381705697,1756315884276,-480.0,0.00022739,2]
[381705698,1756315884286,-480.0,0.00022739,2]
[381705699,1756315884295,-822.31,0.00022739,2]
[381705700,1756315884304,-501.15,0.00022739,2]
[381705701,1756315884314,-480.0,0.00022739,2]
[381705702,1756315884325,-480.0,0.00022739,2]
[381705703,1756315884334,-466.46234252,0.00022739,2]
[381705704,1756315884343,-480.0,0.00022739,2]
[381705705,1756315884353,-480.0,0.00022739,2]
[381705706,1756315884362,-480.0,0.00022739,2]
[381705707,1756315884372,-480.0,0.00022739,2]
[381705708,1756315884381,-480.0,0.00022739,2]
[381705709,1756315884391,-480.0,0.00022739,2]
[381705710,1756315884400,-480.0,0.00022739,2]
[381705711,1756315884409,-480.0,0.00022739,2]
[381705712,1756315884418,-513.13,0.00022739,2]
[381705713,1756315884427,-480.0,0.00022739,2]
[381705714,1756315884437,-7578.13,0.00022739,2]
[381705715,1756315884447,-767.09,0.00022739,2]
[381705716,1756315884456,-480.0,0.00022739,2]
[381705717,1756315884466,-480.0,0.00022739,2]
[381705718,1756315884476,-1421.98,0.00022739,2]
[381705719,1756315884485,-480.0,0.00022739,2]
[381705720,1756315884495,-174.54860256,0.00022739,2]
[381705721,1756315884504,-480.0,0.00022739,2]
[381705722,1756315884514,-480.0,0.00022739,2]
[381705723,1756315884524,-480.0,0.00022739,2]
[381705724,1756315884533,-480.0,0.00022739,2]
[381705725,1756315884543,-564.27,0.00022739,2]
[381705726,1756315884553,-480.0,0.00022739,2]
[381705727,1756315884563,-480.0,0.00022739,2]
[381705728,1756315884576,-480.0,0.00022739,2]
[381705729,1756315884587,-480.0,0.00022739,2]
[381705730,1756315884599,-480.0,0.00022739,2]
[381705731,1756315884609,-480.0,0.00022739,2]
[381705732,1756315884620,-480.0,0.00022739,2]
[381705733,1756315884630,-545.55,0.00022739,2]
[381705734,1756315884642,-198.11906859,0.00022739,2]
[381705735,1756315884652,-480.0,0.00022739,2]
[381705736,1756315884662,-480.0,0.00022739,2]
[381705737,1756315884672,-1006.49,0.00022739,2]
[381705738,1756315884682,-480.0,0.00022739,2]
[381705739,1756315884692,-480.0,0.00022739,2]
[381705740,1756315884701,-480.0,0.00022739,2]
[381705741,1756315884711,-480.0,0.00022739,2]
[381705742,1756315884720,-480.0,0.00022739,2]
[381705743,1756315884730,-480.0,0.00022739,2]
[381705744,1756315884739,-480.0,0.00022739,2]
[381705745,1756315884749,-480.0,0.00022739,2]
[381705746,1756315884759,-602.91,0.00022739,2]
[381705747,1756315884768,-480.0,0.00022739,2]
[381705748,1756315884778,-480.0,0.00022739,2]
[381705749,1756315884787,-480.0,0.00022739,2]
[381705750,1756315884797,-480.0,0.00022739,2]
[381705751,1756315884806,-480.0,0.00022739,2]
[381705752,1756315884816,-480.0,0.00022739,2]
[381705753,1756315884827,-480.0,0.00022739,2]
[381705754,1756315884837,-480.0,0.00022739,2]
[381705755,1756315884846,-596.82,0.00022739,2]
[381705756,1756315884855,-575.39,0.00022739,2]
[381705757,1756315884865,-480.0,0.00022739,2]
[381705758,1756315884874,-480.0,0.00022739,2]
[381705759,1756315884883,-480.0,0.00022739,2]
[381705760,1756315884893,-480.0,0.00022739,2]
[381705761,1756315884903,-480.0,0.00022739,2]
[381705762,1756315884913,-519.91388181,0.00022739,2]
[381705763,1756315884922,-480.0,0.00022739,2]
[381705764,1756315884931,-506.47,0.00022739,2]
[381705765,1756315884941,-480.0,0.00022739,2]
[381705766,1756315884950,-635.3,0.00022739,2]
[381705767,1756315884959,-480.0,0.00022739,2]
[381705768,1756315884969,-1605.48,0.00022739,2]
[381705769,1756315884978,-984.43,0.00022739,2]
[381705770,1756315884988,-480.0,0.00022739,2]
[381705771,1756315884997,-480.0,0.00022739,2]
[381705772,1756315885008,-496.43,0.00022739,2]
[381705773,1756315885018,-480.0,0.00022739,2]
[381705774,1756315885028,-480.0,0.00022739,2]
[381705775,1756315885037,-480.0,0.00022739,2]
[381705776,1756315885047,-480.0,0.00022739,2]
[381705777,1756315885058,-708.97,0.00022739,2]
[381705778,1756315885067,-480.0,0.00022739,2]
[381705779,1756315885078,-480.0,0.00022739,2]
[381705780,1756315885087,-480.0,0.00022739,2]
[381705781,1756315885096,-480.0,0.00022739,2]
[381705782,1756315885106,-517.74,0.00022739,2]
[381705783,1756315885115,-480.0,0.00022739,2]
[381705784,1756315885125,-480.0,0.00022739,2]
[381705785,1756315885134,-500.0,0.00022739,2]
[381705786,1756315885143,-480.0,0.00022739,2]
[381705787,1756315885152,-480.0,0.00022739,2]
[381705788,1756315885162,-636.21,0.00022739,2]
[381705789,1756315885173,-480.0,0.00022739,2]
[381705790,1756315885183,-480.0,0.00022739,2]
[381705791,1756315885193,-735.93,0.00022739,2]
[381705792,1756315885204,-480.0,0.00022739,2]
[381705793,1756315885213,-480.0,0.00022739,2]
[381705794,1756315885226,-480.0,0.00022739,2]
[381705795,1756315885235,-551.29,0.00022739,2]
[381705796,1756315885245,-530.01,0.00022739,2]
[381705797,1756315885255,-480.0,0.00022739,2]
[381705798,1756315885266,-480.0,0.00022739,2]
[381705799,1756315885275,-480.0,0.00022739,2]
[381705800,1756315885284,-749.97,0.00022739,2]
[381705801,1756315885293,-480.0,0.00022739,2]
[381705802,1756315885302,-828.83,0.00022739,2]
[381705803,1756315885313,-709.76,0.00022739,2]
[381705804,1756315885323,-646.17,0.00022739,2]
[381705805,1756315885333,-480.0,0.00022739,2]
[381705806,1756315885342,-1357.85,0.00022739,2]
[381705807,1756315885351,-480.0,0.00022739,2]
[381705808,1756315885360,-1059.71,0.00022739,2]
[381705809,1756315885369,-480.0,0.00022739,2]
[381705810,1756315885379,-1042.56,0.00022739,2]
[381705811,1756315885388,-480.0,0.00022739,2]
[381705812,1756315885397,-669.54,0.00022739,2]
[381705813,1756315885406,-480.0,0.00022739,2]
[381705814,1756315885415,-480.0,0.00022739,2]
[381705815,1756315885425,-480.0,0.00022739,2]
[381705816,1756315885435,-480.0,0.00022739,2]
[381705817,1756315885445,-156.1979697,0.00022739,2]
[381705818,1756315885454,-480.0,0.00022739,2]
[381705819,1756315885464,-707.48,0.00022739,2]
[381705820,1756315885473,-550.53,0.00022739,2]
[381705821,1756315885482,-480.0,0.00022739,2]
[381705822,1756315885491,-1356.93,0.00022739,2]
[381705823,1756315885501,-480.0,0.00022739,2]
[381705824,1756315885511,-754.65,0.00022739,2]